[Event "FIDE World Cup G12-B 2024"]
[Site "Batumi"]
[Date "2024.06.23"]
[Round "1.9"]
[White "Tereshchenko, Eliza"]
[Black "Chiokadze, Barbare"]
[Result "1-0"]
[ECO "D00"]
[WhiteElo "1694"]
[BlackElo "1461"]
[Annotator "NA RC"]
[PlyCount "101"]
[EventDate "2024.06.23"]
[EventType "swiss"]
[EventCountry "GEO"]
[SourceTitle "playchess.com"]
[Source "ChessBase"]
[SourceQuality "1"]
[TimeControl "5400+30"]

1. d4 {[%emt 0:00:01]} Nf6 {[%emt 0:00:08]} 2. Bf4 {[%emt 0:00:05]} d5 {[%emt 0:00:16]} 3. e3 {[%emt 0:00:08]} Bf5 {[%emt 0:00:33]} 4. c4 {[%emt 0:00:08]} e6 {[%emt 0:00:08]} 5. Nc3 {[%emt 0:00:04]} Be7 {[%emt 0:00:06]} 6. h3 {[%emt 0:00:20]} a6 {[%emt 0:01:10]} 7. Nf3 {[%emt 0:01:00]} h6 {[%emt 0:00:51]} 8. Bd3 {[%emt 0:04:46]} Bxd3 {[%emt 0:02:03]} 9. Qxd3 {[%emt 0:00:04]} Nbd7 {[%emt 0:00:29]} 10. O-O {[%emt 0:03:02]} g5 {[%emt 0:13:54]} 11. Bg3 {[%emt 0:07:27]} Rg8 {[%emt 0:32:56]} 12. cxd5 {[%emt 0:01:35]} exd5 {[%emt 0:05:00]} 13. Ne5 {[%emt 0:05:59]} h5 {[%emt 0:06:05]} 14. Qf5 {[%emt 0:04:15]} h4 {[%emt 0:07:29]} 15. Bh2 {[%emt 0:01:58]} Nxe5 {[%emt 0:01:45]} 16. dxe5 {[%emt 0:03:29]} Nd7 {[%emt 0:09:00]} 17. Nxd5 {[%emt 0:01:14]} c6 {[%emt 0:03:07]} 18. e6 {[%emt 0:03:32]} Nf6 {[%emt 0:05:23]} 19. Nc7+ {[%emt 0:01:04]} Kf8 {[%emt 0:00:12]} 20. exf7 {[%emt 0:00:50]} Kxf7 {[%emt 0:00:57]} 21. Qe6+ {[%emt 0:00:13]} Kf8 {[%emt 0:00:40]} 22. Nxa8 {[%emt 0:00:46]} g4 {[%emt 0:01:27]} 23. Rad1 {[%emt 0:00:34]} Qxa8 {[%emt 0:00:17]} 24. Bd6 {[%emt 0:00:11]} Qd8 {[%emt 0:04:48]} 25. Qxf6+ {[%emt 0:00:11]} Ke8 {[%emt 0:00:09]} 26. Bxe7 {[%emt 0:00:32]} Qxe7 {[%emt 0:00:12]} 27. Qxe7+ {[%emt 0:00:10]} Kxe7 {[%emt 0:00:04]} 28. hxg4 {[%emt 0:00:10]} Rxg4 {[%emt 0:00:05]} 29. Rd4 {[%emt 0:00:02]} Rg5 {[%emt 0:00:18]} 30. Rxh4 {[%emt 0:00:05]} Rb5 {[%emt 0:00:13]} 31. b3 {[%emt 0:00:06]} Kd6 {[%emt 0:00:15]} 32. Rd1+ {[%emt 0:00:10]} Kc7 {[%emt 0:00:11]} 33. g4 {[%emt 0:00:09]} Ra5 {[%emt 0:00:17]} 34. a4 {[%emt 0:00:06]} b5 {[%emt 0:00:09]} 35. axb5 {[%emt 0:01:09]} Rxb5 {[%emt 0:00:07]} 36. Rd3 {[%emt 0:00:15]} a5 {[%emt 0:00:34]} 37. Rh5 {[%emt 0:00:19]} c5 {[%emt 0:00:49]} 38. g5 {[%emt 0:04:45]} a4 {[%emt 0:03:56]} 39. bxa4 {[%emt 0:00:09]} c4 {[%emt 0:00:37]} 40. axb5 {[%emt 0:00:32]} cxd3 {[%emt 0:00:11]} 41. Kf1 {[%emt 0:00:09]} d2 {[%emt 0:00:05]} 42. Ke2 {[%emt 0:00:04]} Kd6 {[%emt 0:00:11]} 43. Kxd2 {[%emt 0:00:10]} Ke6 {[%emt 0:00:06]} 44. b6 {[%emt 0:00:05]} Kf5 {[%emt 0:00:07]} 45. b7 {[%emt 0:00:14]} Kg6 {[%emt 0:00:05]} 46. Rh8 {[%emt 0:00:06]} Kxg5 {[%emt 0:00:04]} 47. b8=Q {[%emt 1:01:37]} Kf6 {[%emt 0:00:05]} 48. Qd6+ {[%emt 0:00:00]} Kf7 {[%emt 0:00:04]} 49. Rh7+ {[%emt 0:00:00]} Kg8 {[%emt 0:00:08]} 50. Qg6+ {[%emt 0:00:00]} Kf8 {[%emt 0:00:06]} 51. Qf7# {[%emt 0:00:00]} 1-0

[Event "FIDE World Cup G12-B 2024"]
[Site "Batumi"]
[Date "2024.06.23"]
[Round "1.10"]
[White "Kvirkvelia, Anastasia"]
[Black "Amanzhol, Khanzada"]
[Result "0-1"]
[ECO "B07"]
[WhiteElo "1440"]
[BlackElo "1685"]
[Annotator "NA RC"]
[PlyCount "112"]
[EventDate "2024.06.23"]
[EventType "swiss"]
[EventCountry "GEO"]
[SourceTitle "playchess.com"]
[Source "ChessBase"]
[SourceQuality "1"]
[TimeControl "5400+30"]

1. e4 {[%emt 0:00:02]} d6 {[%emt 0:00:12]} 2. d4 {[%emt 0:00:12]} Nf6 {[%emt 0:00:06]} 3. Nc3 {[%emt 0:00:05]} e5 {[%emt 0:00:09]} 4. dxe5 {[%emt 0:00:56]} dxe5 {[%emt 0:00:08]} 5. Bd3 {[%emt 0:00:06]} Be6 {[%emt 0:02:55]} 6. Nf3 {[%emt 0:00:25]} Bd6 {[%emt 0:03:39]} 7. Be3 {[%emt 0:03:35]} c6 {[%emt 0:01:15]} 8. O-O {[%emt 0:00:25]} O-O {[%emt 0:03:07]} 9. Qe2 {[%emt 0:00:26]} Bg4 {[%emt 0:04:57]} 10. Bg5 {[%emt 0:02:15]} Nbd7 {[%emt 0:01:20]} 11. Kh1 {[%emt 0:06:36]} Re8 {[%emt 0:03:45]} 12. Qd1 {[%emt 0:04:04]} Bf8 {[%emt 0:00:46]} 13. Be2 {[%emt 0:00:11]} Qc7 {[%emt 0:01:14]} 14. Nd2 {[%emt 0:06:31]} Be6 {[%emt 0:04:03]} 15. h3 {[%emt 0:08:11]} g6 {[%emt 0:02:28]} 16. Nf3 {[%emt 0:01:59]} Bg7 {[%emt 0:00:31]} 17. Qd2 {[%emt 0:02:43]} Rad8 {[%emt 0:14:33]} 18. Qe3 {[%emt 0:00:49]} Qa5 {[%emt 0:01:51]} 19. Bh6 {[%emt 0:02:41]} Bxh6 {[%emt 0:01:41]} 20. Qxh6 {[%emt 0:00:14]} Qb4 {[%emt 0:00:04]} 21. Rab1 {[%emt 0:02:06]} Qf8 {[%emt 0:05:31]} 22. Qe3 {[%emt 0:01:58]} Qc5 {[%emt 0:02:21]} 23. Qh6 {[%emt 0:04:50]} Nb6 {[%emt 0:03:17]} 24. Qh4 {[%emt 0:05:10]} Kg7 {[%emt 0:02:14]} 25. Qg3 {[%emt 0:06:54]} Nc4 {[%emt 0:04:27]} 26. Ng5 {[%emt 0:04:06]} Nd2 {[%emt 0:01:37]} 27. Nxe6+ {[%emt 0:03:10]} Rxe6 {[%emt 0:00:27]} 28. Rfd1 {[%emt 0:01:25]} Ndxe4 {[%emt 0:00:44]} 29. Nxe4 {[%emt 0:01:01]} Nxe4 {[%emt 0:00:13]} 30. Qh4 {[%emt 0:01:24]} Nxf2+ {[%emt 0:00:45]} 31. Kh2 {[%emt 0:05:24]} Rxd1 {[%emt 0:01:36]} 32. Bxd1 {[%emt 0:00:10]} e4 {[%emt 0:00:38]} 33. Bg4 {[%emt 0:03:59]} Nxg4+ {[%emt 0:02:49]} 34. Qxg4 {[%emt 0:00:28]} Qxc2 {[%emt 0:00:16]} 35. Qd1 {[%emt 0:02:17]} Qxd1 {[%emt 0:01:30]} 36. Rxd1 {[%emt 0:00:02]} e3 {[%emt 0:00:06]} 37. g4 {[%emt 0:00:34]} Kf6 {[%emt 0:00:08]} 38. Kg3 {[%emt 0:00:05]} e2 {[%emt 0:00:18]} 39. Re1 {[%emt 0:00:05]} Re5 {[%emt 0:00:23]} 40. Kf2 {[%emt 0:00:13]} Kg5 {[%emt 0:00:09]} 41. Kg3 {[%emt 0:01:16]} Re3+ {[%emt 0:00:10]} 42. Kf2 {[%emt 0:00:14]} Kf4 {[%emt 0:00:15]} 43. b3 {[%emt 0:00:26]} Rxh3 {[%emt 0:00:20]} 44. Kxe2 {[%emt 0:00:11]} Re3+ {[%emt 0:00:06]} 45. Kf2 {[%emt 0:00:11]} Rxe1 {[%emt 0:00:05]} 46. Kxe1 {[%emt 0:00:12]} Kxg4 {[%emt 0:00:04]} 47. Kf2 {[%emt 0:00:11]} h5 {[%emt 0:00:06]} 48. Kg2 {[%emt 0:00:03]} h4 {[%emt 0:00:12]} 49. Kh2 {[%emt 0:00:05]} f5 {[%emt 0:00:08]} 50. Kg2 {[%emt 0:00:06]} h3+ {[%emt 0:00:04]} 51. Kh2 {[%emt 0:00:07]} f4 {[%emt 0:00:10]} 52. a4 {[%emt 0:00:27]} f3 {[%emt 0:00:06]} 53. Kg1 {[%emt 0:00:10]} Kg3 {[%emt 0:00:07]} 54. b4 {[%emt 0:00:05]} h2+ {[%emt 0:00:08]} 55. Kh1 {[%emt 0:00:03]} f2 {[%emt 0:00:05]} 56. b5 {[%emt 0:00:03]} f1=Q# {[%emt 0:00:07]} 0-1

[Event "FIDE World Cup G12-B 2024"]
[Site "Batumi"]
[Date "2024.06.23"]
[Round "1.11"]
[White "Gao, Lilianna"]
[Black "Nakashidze, Nino"]
[Result "1-0"]
[ECO "E44"]
[WhiteElo "1646"]
[BlackElo "1618"]
[Annotator "NA RC"]
[PlyCount "127"]
[EventDate "2024.06.23"]
[EventType "swiss"]
[EventCountry "GEO"]
[SourceTitle "playchess.com"]
[Source "ChessBase"]
[SourceQuality "1"]
[TimeControl "5400+30"]

1. d4 {[%emt 0:00:07]} Nf6 {[%emt 0:00:21]} 2. c4 {[%emt 0:00:30]} e6 {[%emt 0:00:06]} 3. Nc3 {[%emt 0:00:12]} Bb4 {[%emt 0:00:13]} 4. e3 {[%emt 0:00:53]} O-O {[%emt 0:00:44]} 5. Nge2 {[%emt 0:00:41]} b6 {[%emt 0:01:44]} 6. a3 {[%emt 0:01:36]} Be7 {[%emt 0:00:54]} 7. e4 {[%emt 0:02:13]} Bb7 {[%emt 0:02:01]} 8. d5 {[%emt 0:03:29]} exd5 {[%emt 0:06:08]} 9. cxd5 {[%emt 0:02:15]} d6 {[%emt 0:06:26]} 10. Ng3 {[%emt 0:07:00]} Bc8 {[%emt 0:30:27]} 11. Be2 {[%emt 0:08:55]} Nbd7 {[%emt 0:21:12]} 12. f4 {[%emt 0:11:37]} Nc5 {[%emt 0:15:43]} 13. b4 {[%emt 0:05:47]} Na6 {[%emt 0:04:34]} 14. Qa4 {[%emt 0:06:41]} Nb8 {[%emt 0:03:14]} 15. h3 {[%emt 0:04:00]} Bd7 {[%emt 0:02:14]} 16. Qc2 {[%emt 0:01:34]} c6 {[%emt 0:01:21]} 17. Bd3 {[%emt 0:04:06]} cxd5 {[%emt 0:00:39]} 18. e5 {[%emt 0:01:05]} dxe5 {[%emt 0:00:30]} 19. fxe5 {[%emt 0:00:20]} Ne8 {[%emt 0:00:29]} 20. Bxh7+ {[%emt 0:02:08]} Kh8 {[%emt 0:00:10]} 21. Nxd5 {[%emt 0:03:13]} g6 {[%emt 0:01:11]} 22. Bxg6 {[%emt 0:03:07]} fxg6 {[%emt 0:00:08]} 23. Qxg6 {[%emt 0:00:27]} Ng7 {[%emt 0:00:34]} 24. Bh6 {[%emt 0:01:39]} Rg8 {[%emt 0:00:51]} 25. Nf6 {[%emt 0:06:39]} Bxf6 {[%emt 0:00:21]} 26. exf6 {[%emt 0:00:44]} Qe8+ {[%emt 0:00:26]} 27. Qxe8 {[%emt 0:00:20]} Rxe8+ {[%emt 0:00:12]} 28. Kf2 {[%emt 0:00:26]} Nf5 {[%emt 0:00:52]} 29. Nxf5 {[%emt 0:00:40]} Bxf5 {[%emt 0:00:08]} 30. f7 {[%emt 0:00:13]} Nd7 {[%emt 0:01:02]} 31. fxe8=Q+ {[%emt 0:00:19]} Rxe8 {[%emt 0:00:11]} 32. Rhe1 {[%emt 0:00:42]} Rg8 {[%emt 0:00:46]} 33. Re7 {[%emt 0:00:25]} Nb8 {[%emt 0:00:31]} 34. Rae1 {[%emt 0:00:29]} Nc6 {[%emt 0:00:33]} 35. Rc7 {[%emt 0:00:22]} Nd8 {[%emt 0:00:18]} 36. Ree7 {[%emt 0:00:24]} Bg6 {[%emt 0:00:35]} 37. Bg7+ {[%emt 0:00:19]} Kh7 {[%emt 0:00:29]} 38. Bf6+ {[%emt 0:00:43]} Kh6 {[%emt 0:00:10]} 39. g4 {[%emt 0:00:30]} a6 {[%emt 0:00:33]} 40. g5+ {[%emt 0:00:25]} Kh5 {[%emt 0:00:10]} 41. Kg3 {[%emt 0:00:25]} Nf7 {[%emt 0:01:09]} 42. Rxf7 {[%emt 0:00:30]} Bxf7 {[%emt 0:00:08]} 43. Rxf7 {[%emt 0:00:06]} Kg6 {[%emt 0:00:56]} 44. Rg7+ {[%emt 0:00:21]} Rxg7 {[%emt 0:00:09]} 45. Bxg7 {[%emt 0:00:04]} Kxg7 {[%emt 0:00:10]} 46. Kg4 {[%emt 0:00:08]} Kg6 {[%emt 0:00:15]} 47. h4 {[%emt 0:00:06]} Kg7 {[%emt 0:00:13]} 48. h5 {[%emt 0:00:04]} Kh7 {[%emt 0:00:17]} 49. Kf5 {[%emt 0:00:03]} Kg7 {[%emt 0:00:19]} 50. Ke6 {[%emt 0:00:04]} Kg8 {[%emt 0:00:22]} 51. Kf6 {[%emt 0:00:18]} Kf8 {[%emt 0:00:14]} 52. g6 {[%emt 0:00:05]} Kg8 {[%emt 0:00:23]} 53. h6 {[%emt 0:00:06]} Kh8 {[%emt 0:00:19]} 54. g7+ {[%emt 0:00:05]} Kh7 {[%emt 0:01:07]} 55. Kf7 {[%emt 0:00:07]} Kxh6 {[%emt 0:00:14]} 56. g8=Q {[%emt 0:00:08]} Kh5 {[%emt 0:00:15]} 57. Qg6+ {[%emt 0:00:06]} Kh4 {[%emt 0:00:09]} 58. Kf6 {[%emt 0:00:10]} a5 {[%emt 0:00:23]} 59. Qg5+ {[%emt 0:00:06]} Kh3 {[%emt 0:00:08]} 60. Kf5 {[%emt 0:00:12]} axb4 {[%emt 0:00:17]} 61. Qg4+ {[%emt 0:00:09]} Kh2 {[%emt 0:00:10]} 62. Kf4 {[%emt 0:00:05]} bxa3 {[%emt 0:00:24]} 63. Kf3 {[%emt 0:00:10]} Kh1 {[%emt 0:00:13]} 64. Qg2# {[%emt 0:00:39]} 1-0